bitfinex-derivatives/quotes_SOLF0:USTF0_20260116
["timestamp","ask_amount","ask_price","bid_price","bid_amount"]
[1768571366293,3.15103068,143.08,143.04,6.2941]
[1768571367092,11.63237192,143.1,143.04,9.48072381]
[1768571368398,3.15103068,143.11,143.05,3.18662381]
[1768571369897,3.15103068,143.11,143.06,6.2931]
[1768571370693,9.44203068,143.11,143.05,3.18662381]
[1768571370901,3.26544624,143.1,143.05,3.18662381]
[1768571372498,5.45508748,143.1,143.05,3.18662381]
[1768571375700,2.18964124,143.08,143.03,3.01824844]
[1768571375898,5.45508748,143.08,143.0,3.01824844]
[1768571376903,5.45508748,143.08,143.02,6.295]
[1768571377202,5.45508748,143.08,143.02,9.31324844]
[1768571380704,3.26544624,143.08,143.02,9.31324844]
[1768571382504,3.26544624,143.08,143.03,6.2944]
[1768571382701,3.26544624,143.08,143.03,9.31264844]
[1768571386505,3.26544624,143.1,143.04,9.31234844]
[1768571389911,3.26544624,143.1,143.05,3.01824844]
[1768571395910,9.55694624,143.1,143.05,3.01824844]
[1768571400015,9.55694624,143.1,143.04,6.2941]
[1768571400215,9.55694624,143.1,143.03,9.31942956]
[1768571400721,9.304618,143.09,143.03,3.02492956]
[1768571401018,3.012718,143.08,143.03,3.02492956]
[1768571401715,3.012718,143.08,143.03,9.31942956]
[1768571401920,3.012718,143.1,143.03,9.31942956]
[1768571402817,9.304418,143.1,143.03,9.31942956]
[1768571406621,3.012718,143.09,143.03,9.31942956]
[1768571409028,5.20235924,143.09,143.03,9.31942956]
[1768571414928,3.012718,143.11,143.04,9.31902956]
[1768571415126,5.27742701,143.1,143.04,9.31902956]
[1768571415337,5.20235924,143.11,143.04,9.31902956]
[1768571415628,5.27783876,143.1,143.04,9.31902956]
[1768571415817,5.20235924,143.11,143.04,9.31902956]
[1768571416023,8.29081849,143.1,143.04,9.31902956]
[1768571416222,3.012718,143.1,143.04,9.31902956]
[1768571417328,3.012718,143.1,143.05,6.2936]
[1768571425440,3.30549949,143.11,143.06,3.06598987]
[1768571426340,3.30549949,143.11,143.06,9.35918987]
[1768571428140,3.30549949,143.11,143.06,3.06598987]
[1768571432141,3.23693852,143.15,143.06,9.35898987]
[1768571432337,2.18918333,143.12,143.06,9.35898987]
[1768571432535,3.23693852,143.11,143.06,3.06598987]
[1768571432735,3.23693852,143.11,143.04,3.00900421]
[1768571433843,3.23693852,143.11,143.05,9.30260421]
[1768571443558,9.52803852,143.11,143.05,9.30260421]
[1768571445258,9.52843852,143.1,143.03,9.30320421]
[1768571445658,9.52843852,143.1,143.04,3.00900421]
[1768571447361,9.52843852,143.1,143.05,3.00900421]
[1768571461074,3.23693852,143.1,143.05,3.00900421]
[1768571461475,5.50171601,143.12,143.05,3.00900421]
[1768571461769,8.59020095,143.11,143.05,3.00900421]
[1768571461970,3.31253268,143.11,143.05,3.00900421]
[1768571462777,9.60353268,143.11,143.05,3.00900421]
[1768571462974,3.31253268,143.1,143.05,3.00900421]
[1768571465076,3.31253268,143.1,143.05,9.30260421]
[1768571465375,3.31253268,143.12,143.06,3.18445655]
[1768571465569,5.27814517,143.11,143.06,3.18445655]
[1768571465770,3.31253268,143.11,143.06,3.18445655]
[1768571473583,6.2906,143.12,143.06,3.18445655]
[1768571473776,3.31253268,143.13,143.07,3.18445655]
[1768571473980,8.58175134,143.12,143.07,3.18445655]
[1768571474271,3.31253268,143.12,143.07,3.18445655]
[1768571478987,3.31253268,143.12,143.07,9.47715655]
[1768571489497,11.73271825,143.14,143.07,9.47715655]
[1768571490899,9.54432711,143.14,143.08,3.12673669]
[1768571491090,11.73271825,143.14,143.08,3.12673669]
[1768571492096,3.25432711,143.13,143.08,3.12673669]
[1768571505307,3.25432711,143.13,143.08,9.41903669]
[1768571513415,5.42011448,143.15,143.09,3.18368982]
[1768571513811,3.23172334,143.14,143.09,3.18368982]
[1768571518024,8.47769114,143.15,143.09,3.18368982]
[1768571518229,2.18839114,143.14,143.09,3.18368982]
[1768571524835,5.42011448,143.14,143.09,3.18368982]
[1768571526840,11.70981448,143.14,143.07,3.18368982]
[1768571527043,3.23172334,143.13,143.07,3.18368982]
[1768571527941,3.23172334,143.13,143.07,9.47638982]
[1768571529047,3.23172334,143.13,143.04,19.0]
[1768571529048,5.42011448,143.1,143.04,3.18368982]
[1768571529746,5.42011448,143.1,143.04,9.47768982]
[1768571532243,5.42011448,143.1,143.05,3.18368982]
[1768571534249,9.52232334,143.12,143.06,3.18368982]
[1768571534443,5.42011448,143.12,143.06,3.18368982]
[1768571535745,3.23172334,143.11,143.06,3.18368982]
[1768571535949,5.42011448,143.1,143.05,6.2935]
[1768571536546,5.42011448,143.1,143.05,9.47718982]
[1768571537447,3.23172334,143.1,143.05,9.47718982]
[1768571537748,5.42011448,143.1,143.05,9.47718982]
[1768571540062,2.18839114,143.1,143.05,9.47718982]
[1768571540451,2.18839114,143.1,143.02,3.18368982]
[1768571540651,5.42011448,143.1,143.02,3.18368982]
[1768571541052,3.23172334,143.1,143.02,3.18368982]
[1768571541352,2.18839114,143.09,143.02,3.18368982]
[1768571541749,2.18839114,143.09,143.04,3.18286262]
[1768571544959,2.18839114,143.09,143.04,9.47686262]
[1768571545345,5.42117208,143.1,143.04,9.47686262]
[1768571546057,3.23172334,143.1,143.04,9.47686262]
[1768571546356,5.42117208,143.1,143.05,3.18286262]
[1768571549748,3.23172334,143.1,143.05,3.18286262]
[1768571549944,5.42117208,143.1,143.05,3.18286262]
[1768571550163,3.32326674,143.09,143.04,9.45072548]
[1768571550358,2.18944874,143.1,143.04,9.45072548]
[1768571552556,3.32326674,143.09,143.02,3.15672548]
[1768571553358,5.51271548,143.08,143.02,3.15672548]
[1768571553856,5.51271548,143.06,143.0,3.15672548]
[1768571555351,3.32326674,143.05,143.0,3.15672548]
[1768571555559,5.51271548,143.04,142.98,3.15672548]
[1768571556056,3.32326674,143.03,142.98,3.15672548]
[1768571556454,5.51271548,143.02,142.96,3.15672548]
[1768571557462,5.51271548,143.0,142.94,3.15672548]
[1768571557655,3.32326674,142.99,142.93,6.2986]
[1768571557858,3.32326674,142.99,142.93,3.15672548]
[1768571558562,2.18944874,142.98,142.93,3.15672548]
[1768571558763,5.51271548,142.98,142.91,3.15672548]
[1768571558965,5.51271548,142.96,142.91,3.15672548]
[1768571559162,5.51271548,142.96,142.87,3.15672548]
[1768571559362,5.51271548,142.96,142.89,3.15672548]
[1768571560356,3.32326674,142.95,142.89,3.15672548]
[1768571560960,2.18944874,142.97,142.9,3.15672548]
[1768571561165,5.51271548,142.97,142.9,3.15672548]
[1768571561864,5.51271548,142.99,142.91,3.15672548]
[1768571562063,3.32326674,142.99,142.91,3.15672548]
[1768571562861,3.32326674,142.99,142.9,2.18944874]
[1768571562862,3.32326674,142.99,142.93,3.15672548]
[1768571563263,3.32326674,143.01,142.93,3.15672548]
[1768571564765,3.32326674,143.01,142.93,9.45532548]
[1768571564974,3.32326674,143.01,142.94,3.15672548]
[1768571568674,3.32326674,143.01,142.93,6.2986]
[1768571568874,3.32326674,143.01,142.93,9.45532548]
[1768571570477,3.32326674,143.01,142.94,6.2984]
[1768571570680,3.32326674,143.01,142.94,9.45512548]
[1768571572573,3.32326674,143.01,142.95,3.16733107]
[1768571572866,8.48394874,143.04,142.95,3.16733107]
[1768571573073,3.31606584,143.03,142.95,3.16733107]
[1768571573770,3.31606584,143.03,142.96,6.2975]
[1768571573969,3.31606584,143.03,142.96,9.46483107]
[1768571574670,3.31606584,143.03,142.98,3.16733107]
[1768571576574,3.31606584,143.03,142.98,9.46393107]
[1768571577882,11.79921458,143.05,142.98,9.46393107]
[1768571581381,3.31606584,143.04,142.98,6.2966]
[1768571584580,9.61026584,143.04,142.97,3.16733107]
[1768571584882,3.31606584,143.03,142.97,3.16733107]
[1768571585782,3.31606584,143.03,142.97,9.46443107]
[1768571586582,3.31606584,143.02,142.95,9.46513107]
[1768571588885,3.31606584,143.01,142.95,9.46513107]
[1768571590287,11.80091458,143.01,142.95,3.16733107]
[1768571592181,3.31606584,143.0,142.94,6.2985]
[1768571593780,3.31606584,143.0,142.94,9.46583107]
[1768571604591,11.64418461,143.03,142.96,3.03356648]
[1768571605601,3.15993587,143.02,142.96,3.03356648]
[1768571606600,3.15993587,143.02,142.96,9.33106648]
[1768571608394,3.15993587,143.02,142.97,6.2971]
[1768571615406,3.15993587,143.02,142.96,9.33116648]
[1768571629519,3.15993587,143.02,142.97,3.18540687]
[1768571636521,9.57075447,143.04,142.97,9.48260687]
[1768571636719,9.57075447,143.04,142.98,3.18500174]
[1768571636928,3.27665447,143.04,142.98,3.18500174]
[1768571637816,3.27665447,143.04,142.99,3.18500174]
[1768571639030,6.2937,143.05,143.0,3.18500174]
[1768571639229,11.76167605,143.06,143.0,3.18500174]
[1768571642533,11.76167605,143.06,143.0,9.48080174]
[1768571642930,5.46847605,143.04,142.96,3.18500174]
[1768571643135,3.27665447,143.03,142.96,3.18500174]
[1768571644934,3.27665447,143.03,142.97,9.48210174]
[1768571645833,3.27665447,143.03,142.98,3.18500174]
[1768571647026,3.27665447,143.03,142.98,9.48160174]
[1768571650830,3.27665447,143.06,142.99,9.48120174]
[1768571651534,3.27665447,143.05,142.99,9.48120174]
[1768571656939,3.27665447,143.05,143.0,3.18500174]
[1768571658137,3.27665447,143.05,143.0,9.48080174]
[1768571658430,3.27665447,143.06,143.01,3.18500174]
[1768571659336,9.56985447,143.06,143.01,3.18500174]
[1768571662943,9.56985447,143.06,143.0,6.2958]
[1768571663242,3.12962891,143.05,142.99,9.40799666]
[1768571672650,3.12962891,143.05,143.0,9.48042481]
[1768571674650,5.32295672,143.07,143.0,9.48042481]
[1768571674850,5.32295672,143.07,143.01,3.18462481]
[1768571677154,11.61575672,143.07,143.01,3.18462481]
[1768571683759,6.2933,143.06,143.01,3.18462481]
[1768571691559,9.56951491,143.06,143.01,3.18462481]
[1768571695262,9.56951491,143.06,143.0,6.2958]
[1768571695558,9.56951491,143.06,142.99,3.18411494]
[1768571695759,9.56991491,143.05,142.99,9.48041494]
[1768571695959,9.56991491,143.05,142.99,3.18411494]
[1768571696663,3.27621491,143.04,142.99,3.18411494]
[1768571696864,3.27621491,143.04,142.98,6.2967]
[1768571697762,3.27621491,143.04,142.98,9.48081494]
[1768571697964,9.57051491,143.04,142.98,3.18411494]
[1768571699966,9.57051491,143.04,142.98,9.48081494]
[1768571700169,3.27621491,143.04,142.98,9.48081494]
[1768571701467,3.27621491,143.04,142.99,3.18411494]
[1768571708672,3.27621491,143.04,143.0,0.04603921]
[1768571712272,11.76022873,143.06,143.0,3.23015415]
[1768571712775,3.27621491,143.05,143.0,3.23015415]
[1768571712976,3.27621491,143.05,143.0,9.52585415]
[1768571714676,3.27621491,143.05,143.01,6.2953]
[1768571719983,3.27621491,143.08,143.03,3.18411494]
[1768571720874,9.56851491,143.08,143.03,3.18411494]
[1768571721785,3.27621491,143.08,143.03,3.18411494]
[1768571722080,3.27621491,143.08,143.03,9.47861494]
[1768571725686,8.48251382,143.1,143.04,3.09566714]
[1768571725880,11.71664192,143.1,143.04,3.09566714]
[1768571726681,3.2341281,143.09,143.04,3.09566714]
[1768571746201,9.5260281,143.09,143.04,3.09566714]
[1768571746701,9.5260281,143.09,143.02,9.47806606]
[1768571747000,2.18966809,143.1,143.02,3.18306606]
[1768571747001,3.0140034,143.07,143.02,3.18306606]
[1768571752803,6.292,143.09,143.03,3.02361413]
[1768571752999,3.17573157,143.1,143.03,3.02361413]
[1768571753806,9.46763157,143.09,143.03,3.02361413]
[1768571754898,3.17573157,143.08,143.03,3.02361413]
[1768571755101,9.46823157,143.08,143.03,3.02361413]
[1768571756109,9.46823157,143.08,143.0,2.18966809]
[1768571756405,3.17573157,143.07,143.01,3.02361413]
[1768571758910,3.17573157,143.07,143.01,9.31901413]
[1768571760111,3.17573157,143.07,143.02,3.02361413]
[1768571761808,3.17573157,143.06,143.01,6.2954]
[1768571762014,3.17573157,143.06,143.0,3.02361413]
[1768571762307,3.17573157,143.06,142.99,6.2959]
[1768571762512,5.36539966,143.05,142.99,6.2959]
[1768571763402,3.17573157,143.04,142.98,9.32031413]
[1768571767818,3.17573157,143.04,142.99,3.02361413]
[1768571769215,6.2937,143.05,142.99,3.02361413]
[1768571772119,11.65859966,143.06,142.99,9.31991413]
[1768571772512,11.65859966,143.06,143.0,3.02361413]
[1768571774521,9.46893157,143.06,143.0,3.02361413]
[1768571776325,3.17573157,143.05,143.0,3.02361413]
[1768571784130,9.46943157,143.05,143.0,3.02361413]
[1768571785635,3.17573157,143.05,143.0,3.02361413]
[1768571788430,3.17573157,143.05,143.0,9.31941413]
[1768571789836,3.26397906,143.06,143.0,9.31941413]
[1768571806259,3.26397906,143.05,142.98,3.18453532]
[1768571806455,2.19073743,143.04,142.98,3.18453532]
[1768571806955,2.19073743,143.04,142.98,9.48123532]
[1768571807143,2.19073743,143.04,142.99,3.18453532]
[1768571807349,5.45471649,143.04,142.99,3.18453532]
[1768571809153,3.26397906,143.03,142.97,3.18453532]
[1768571810554,3.26397906,143.03,142.97,9.48163532]
[1768571813658,3.26397906,143.03,142.98,3.1849758]
[1768571816061,9.57629617,143.06,142.99,3.1849758]
[1768571816261,11.7670336,143.06,142.99,3.1849758]
[1768571817364,11.7670336,143.06,143.0,3.1849758]
[1768571819860,5.4735336,143.06,143.0,3.1849758]
[1768571823069,5.4735336,143.06,143.0,9.4807758]
[1768571826678,3.28279617,143.06,143.01,9.4802758]
[1768571826880,2.19073743,143.07,143.01,9.4802758]
[1768571827081,2.19073743,143.07,143.02,3.1849758]
[1768571827381,3.28279617,143.08,143.02,3.1849758]
[1768571827577,9.57519617,143.08,143.02,9.4798758]
[1768571827980,3.28279617,143.07,143.02,9.4798758]
[1768571828681,9.57469617,143.09,143.03,3.1849758]
[1768571828881,3.28279617,143.08,143.03,3.1849758]
[1768571830485,3.28279617,143.08,143.02,9.4798758]
[1768571833895,11.7650336,143.1,143.03,3.1849758]
[1768571834783,11.7650336,143.1,143.04,6.2941]
[1768571835591,3.28279617,143.09,143.04,6.2941]
[1768571835788,3.28279617,143.09,143.03,3.1849758]
[1768571836993,3.28279617,143.09,143.03,9.4794758]
[1768571837489,3.28279617,143.11,143.05,3.1849758]
[1768571838490,3.28279617,143.15,143.07,3.1849758]
[1768571839890,3.28279617,143.14,143.07,9.4776758]
[1768571840293,3.28279617,143.14,143.08,3.1849758]
[1768571842396,3.28279617,143.14,143.09,3.0918373]
[1768571843793,3.28279617,143.14,143.09,9.3836373]
[1768571843998,3.09072192,143.16,143.09,9.3836373]
[1768571844595,3.09072192,143.16,143.1,3.0918373]
[1768571847599,3.09072192,143.16,143.1,9.3832373]
[1768571851601,3.09072192,143.16,143.11,6.291]
[1768571852403,3.09072192,143.16,143.11,9.47226115]
[1768571852706,11.51424288,143.18,143.12,3.18126115]
[1768571853802,9.32390545,143.17,143.12,3.18126115]
[1768571854302,3.03550545,143.16,143.11,6.291]
[1768571854501,3.03550545,143.16,143.1,3.18126115]
[1768571856003,5.22307689,143.15,143.09,6.2916]
[1768571856203,5.22307689,143.15,143.09,9.47286115]
[1768571877514,11.51237689,143.15,143.09,9.47286115]
[1768571878115,9.615212,143.14,143.09,3.18126115]
[1768571880817,3.325312,143.14,143.09,3.18126115]
[1768571889227,3.325312,143.16,143.09,3.18126115]
[1768571890923,9.614112,143.16,143.1,3.01308366]
[1768571895033,11.80168344,143.16,143.1,3.01308366]
[1768571896633,3.325312,143.15,143.1,3.01308366]
[1768571899637,3.325312,143.15,143.09,6.2919]
[1768571901133,3.325312,143.15,143.09,9.30498366]
[1768571902440,5.48578814,143.14,143.09,3.01308366]
[1768571903440,3.2982167,143.14,143.09,3.01308366]
[1768571903639,5.48578814,143.14,143.09,3.01308366]
[1768571904636,2.18757144,143.12,143.07,3.18177803]
[1768571904938,3.2982167,143.11,143.06,6.2929]
[1768571905943,5.48578814,143.1,143.05,3.18177803]
[1768571906336,5.48578814,143.1,143.03,19.0]
[1768571906337,3.2982167,143.09,143.03,3.18177803]
[1768571907237,2.18757144,143.08,143.03,3.18177803]
[1768571916049,5.48578814,143.09,143.03,3.18177803]
[1768571917352,5.48819817,143.09,143.03,3.18177803]
[1768571920353,3.18124793,143.08,143.03,3.18177803]
[1768571924756,3.18124793,143.08,143.03,9.47627803]
[1768571934761,3.18124793,143.08,143.04,6.2941]
[1768571934959,5.29044295,143.1,143.04,6.2941]
[1768571936262,3.10046148,143.09,143.04,6.2941]
[1768571936456,3.10046148,143.09,143.03,3.18177803]
[1768571936457,3.10046148,143.09,143.03,9.47627803]
[1768571941168,3.10046148,143.08,143.03,3.18177803]
[1768571950674,3.10046148,143.1,143.04,3.18342892]
[1768571950872,5.29044295,143.12,143.04,3.18342892]
[1768571951074,5.25325557,143.11,143.04,3.18342892]
[1768571951369,3.10046148,143.11,143.04,3.18342892]
[1768571951776,3.10046148,143.11,143.05,3.18342892]
[1768571953769,9.39156148,143.11,143.05,3.18342892]
[1768571954073,3.10046148,143.1,143.05,3.18342892]
[1768571966885,11.58194295,143.1,143.03,9.47859789]
[1768571967592,3.12489778,143.09,143.03,9.47859789]
[1768571969391,3.12489778,143.09,143.04,3.18489495]
[1768572001526,3.12489778,143.09,143.04,9.47879495]
[1768572001915,3.29852368,143.11,143.04,9.47879495]
[1768572002122,3.29852368,143.11,143.06,3.1591684]
[1768572005418,2.18954699,143.13,143.07,3.1591684]
[1768572005618,3.29852368,143.14,143.07,3.1591684]
[1768572005819,3.29852368,143.14,143.08,6.2923]
[1768572006511,3.29852368,143.14,143.08,9.4514684]
[1768572009323,3.29852368,143.14,143.09,6.2919]
[1768572009518,3.29852368,143.16,143.09,3.1591684]
[1768572009723,3.29852368,143.16,143.09,5.34871539]
[1768572010521,3.29852368,143.16,143.1,3.1591684]
[1768572010924,3.29852368,143.16,143.1,9.4505684]
[1768572014425,3.29852368,143.16,143.1,6.2914]
[1768572014622,3.29852368,143.15,143.08,9.4511684]
[1768572015426,3.29852368,143.15,143.08,3.1591684]
[1768572015636,3.29852368,143.15,143.09,6.2919]
[1768572015931,3.29852368,143.15,143.06,22.1591684]
[1768572016129,3.29852368,143.15,143.06,3.1591684]
[1768572016730,3.29852368,143.15,143.07,6.2924]
[1768572016731,3.29852368,143.13,143.07,6.2924]
[1768572017332,3.29852368,143.13,143.06,3.1591684]
[1768572021031,3.29852368,143.13,143.06,9.4522684]
[1768572021732,3.29852368,143.13,143.07,3.18184261]
[1768572022934,3.29852368,143.13,143.07,9.47454261]
[1768572023229,3.29852368,143.13,143.08,3.18184261]
[1768572026733,3.12175713,143.15,143.09,3.18184261]
[1768572027340,3.12175713,143.15,143.1,3.18184261]
[1768572027530,3.12175713,143.17,143.11,3.18184261]
[1768572029541,3.12175713,143.17,143.11,9.47284261]
[1768572032942,9.35915418,143.19,143.12,3.18112284]
[1768572033145,9.35915418,143.19,143.13,3.18112284]
[1768572034846,3.07165418,143.18,143.13,3.18112284]
[1768572035842,3.07165418,143.17,143.12,6.2905]
[1768572036143,3.07165418,143.17,143.11,5.37066983]
[1768572038950,3.07165418,143.17,143.11,11.66166983]
[1768572039352,3.07165418,143.17,143.11,9.47212284]
[1768572039958,3.07165418,143.16,143.09,9.47262284]
[1768572040251,3.07165418,143.14,143.07,3.18112284]
[1768572040552,3.07165418,143.13,143.07,3.18112284]
[1768572041753,3.07165418,143.13,143.07,9.47352284]
[1768572041955,3.07165418,143.13,143.08,3.18112284]
[1768572048361,3.07165418,143.13,143.05,2.18701645]
[1768572048362,5.25867063,143.12,143.06,3.18112284]
[1768572048559,3.07165418,143.11,143.04,3.18112284]
[1768572049857,9.36275418,143.11,143.04,9.47522284]
[1768572050356,3.07165418,143.1,143.04,9.47522284]
[1768572050560,3.07165418,143.09,143.04,9.47522284]
[1768572051562,3.07165418,143.09,143.02,9.47694157]
[1768572051759,2.18701645,143.08,143.02,9.47694157]
[1768572054062,3.07165418,143.09,143.03,3.18234157]
[1768572054257,2.18701645,143.1,143.04,3.18234157]
[1768572054656,5.49069059,143.1,143.04,3.18234157]
[1768572055561,2.18701645,143.1,143.05,3.18234157]
[1768572057767,5.49069059,143.1,143.05,3.18234157]
[1768572061067,3.30367414,143.12,143.06,3.18234157]
[1768572061269,5.49069059,143.12,143.06,3.18234157]
[1768572061567,5.49069059,143.14,143.08,6.2923]
[1768572062267,5.49069059,143.14,143.08,9.47464157]
[1768572063065,3.30367414,143.16,143.09,9.47404157]
[1768572063468,5.49069059,143.16,143.09,3.18234157]
[1768572064969,3.30367414,143.16,143.1,6.2914]
[1768572065569,3.30367414,143.16,143.09,3.18234157]
[1768572066977,3.30367414,143.16,143.09,9.47424157]
[1768572070482,3.30367414,143.16,143.1,3.18234157]
[1768572070979,3.30367414,143.16,143.1,9.47374157]
[1768572071185,3.30367414,143.16,143.11,3.18234157]
[1768572071385,8.47541645,143.17,143.11,3.18234157]
[1768572071585,11.77909059,143.17,143.11,3.18234157]
[1768572071783,11.77859059,143.19,143.12,3.18234157]
[1768572072084,3.30367414,143.18,143.12,3.18234157]
[1768572073787,5.49069059,143.18,143.12,3.18234157]
[1768572074487,11.77859059,143.18,143.12,3.18234157]
[1768572075185,11.77819059,143.2,143.13,3.18234157]
[1768572075783,3.30367414,143.19,143.13,3.18234157]
[1768572076086,9.59117414,143.19,143.13,3.18234157]
[1768572076291,3.30367414,143.18,143.11,3.18234157]
[1768572076683,5.49069059,143.18,143.11,3.18234157]
[1768572077188,3.30367414,143.18,143.11,3.18234157]
[1768572077383,5.49069059,143.18,143.11,3.18234157]
[1768572077887,11.77869059,143.18,143.11,3.18234157]
[1768572081595,9.59167414,143.18,143.11,3.18234157]
[1768572083590,3.16441167,143.16,143.1,6.2913]
[1768572083798,3.16441167,143.16,143.09,3.04220974]
[1768572085795,3.16441167,143.16,143.1,6.2914]
[1768572086999,3.16441167,143.16,143.1,9.33360974]
[1768572095698,3.16441167,143.16,143.11,3.16621514]
[1768572105703,11.56184807,143.18,143.12,3.16621514]
[1768572106501,6.2874,143.2,143.13,3.16621514]
[1768572107616,9.37384826,143.2,143.13,3.16621514]
[1768572107914,9.37384826,143.2,143.14,3.16621514]
[1768572108309,3.08644826,143.2,143.14,3.16621514]
[1768572108906,3.08644826,143.26,143.16,3.16621514]
[1768572109103,5.27394807,143.24,143.16,3.16621514]
[1768572109306,3.08644826,143.23,143.16,3.16621514]
[1768572109614,9.37224826,143.23,143.16,9.45501514]
[1768572110012,3.08644826,143.22,143.16,9.45501514]
[1768572112210,6.2858,143.23,143.17,3.18066747]
[1768572112404,9.38961795,143.23,143.17,3.18066747]
[1768572112603,11.57711776,143.23,143.17,3.18066747]
[1768572112804,9.38961795,143.23,143.17,3.18066747]
[1768572113008,8.47279981,143.25,143.18,3.18066747]
[1768572113613,3.10381795,143.26,143.19,3.18066747]
[1768572114220,20.34586683,143.28,143.21,3.18066747]
[1768572114418,17.24204888,143.28,143.21,3.18066747]
[1768572116019,26.62946683,143.28,143.21,3.18066747]
[1768572116715,20.34586683,143.28,143.21,3.18066747]
[1768572119110,20.34586683,143.28,143.22,3.18066747]
[1768572119315,17.24204888,143.28,143.23,3.18066747]
[1768572119519,3.10381795,143.32,143.23,3.18066747]
[1768572119714,3.10381795,143.32,143.25,3.18066747]
[1768572120323,5.29131776,143.32,143.25,3.18066747]
[1768572120916,5.29131776,143.32,143.25,9.46546747]
[1768572121815,3.10381795,143.32,143.25,9.46546747]
[1768572122509,3.10381795,143.32,143.23,2.18749981]
[1768572122510,3.10381795,143.3,143.23,3.18066747]
[1768572123723,5.29131776,143.33,143.25,9.46546747]
[1768572123916,3.10381795,143.32,143.25,9.46546747]
[1768572125314,3.10381795,143.32,143.25,3.18066747]
[1768572125519,3.10381795,143.3,143.23,9.46626747]
[1768572127524,3.10381795,143.3,143.23,3.18066747]
[1768572128920,3.10381795,143.3,143.24,6.2851]
[1768572131524,3.10381795,143.3,143.24,9.46576747]
[1768572133820,3.10381795,143.3,143.24,6.2851]
[1768572134023,3.10381795,143.28,143.21,22.18066747]
[1768572134227,3.10381795,143.28,143.21,3.18066747]
[1768572136022,3.10381795,143.28,143.21,9.46726747]
[1768572139128,3.10381795,143.26,143.2,6.2871]
[1768572139329,5.29131776,143.25,143.2,6.2871]
[1768572140832,3.10381795,143.25,143.2,6.2871]
[1768572143637,2.18749981,143.26,143.21,3.18316534]
[1768572145426,5.3564181,143.27,143.21,3.18316534]
[1768572145626,3.16891829,143.27,143.21,3.18316534]
[1768572145822,5.3564181,143.27,143.21,3.18316534]
[1768572146228,3.16891829,143.26,143.2,6.2871]
[1768572148346,3.16891829,143.26,143.21,6.2866]
[1768572155050,3.16891829,143.26,143.21,9.4669992]
[1768572155648,3.16097875,143.29,143.22,3.1803992]
[1768572155857,5.34847856,143.28,143.22,3.1803992]
[1768572158255,3.16097875,143.27,143.22,3.1803992]
[1768572158756,3.16097875,143.27,143.2,3.1803992]
[1768572159844,3.16097875,143.27,143.21,6.2866]
[1768572161851,3.16097875,143.27,143.22,6.2859]
[1768572167557,2.18443634,143.28,143.22,9.4662992]
[1768572168264,5.34541509,143.28,143.22,9.4662992]
[1768572170160,3.16097875,143.27,143.22,9.4662992]
[1768572173366,5.30447608,143.26,143.21,6.2864]
[1768572174563,5.30447608,143.26,143.2,3.16481765]
[1768572174768,3.12003974,143.25,143.19,6.2871]
[1768572175470,5.30447608,143.24,143.19,6.2871]
[1768572178065,3.12003974,143.24,143.19,9.45191765]
[1768572178372,2.18443634,143.25,143.19,9.45191765]
[1768572180172,2.18443634,143.25,143.2,3.16481765]
[1768572180365,9.40543974,143.24,143.18,3.16481765]
[1768572180570,5.30447608,143.23,143.16,3.16481765]
[1768572180771,5.30447608,143.21,143.14,3.16481765]
[1768572181070,11.59107608,143.21,143.14,3.16481765]
[1768572181569,3.12003974,143.2,143.14,3.16481765]
[1768572181772,5.30447608,143.19,143.14,3.16481765]
[1768572183973,5.30447608,143.19,143.12,6.2902]
[1768572183974,11.59217608,143.19,143.11,3.16481765]
[1768572184174,3.12003974,143.18,143.11,3.16481765]
[1768572190076,3.12003974,143.18,143.11,9.45581765]
[1768572191168,3.12003974,143.18,143.12,3.16481765]
[1768572191564,3.12003974,143.18,143.12,9.45531765]
[1768572193168,3.12003974,143.21,143.14,3.16481765]
[1768572193666,2.18443634,143.22,143.14,3.16481765]
[1768572194067,2.18443634,143.22,143.13,2.18443634]
[1768572194068,3.12003974,143.23,143.16,9.45351765]
[1768572194272,3.12003974,143.23,143.16,3.16481765]
[1768572195783,3.12003974,143.23,143.17,6.2883]
[1768572198884,3.12003974,143.21,143.15,6.2888]
[1768572199272,3.12003974,143.21,143.12,22.16481765]
[1768572199480,3.12003974,143.19,143.13,6.2898]
[1768572199982,3.12003974,143.19,143.13,9.45461765]
[1768572201189,3.12003974,143.19,143.13,3.16481765]
[1768572201383,3.12003974,143.19,143.12,3.07175212]
[1768572202789,3.00102802,143.18,143.12,9.36225212]
[1768572203894,3.00102802,143.17,143.1,9.36285212]
[1768572205097,3.00102802,143.17,143.11,9.36275212]
[1768572210401,3.00102802,143.17,143.12,3.18025978]
[1768572214404,2.18443634,143.18,143.13,3.18025978]
[1768572219006,5.32881396,143.18,143.13,3.18025978]
[1768572219805,11.61681396,143.18,143.13,3.18025978]
[1768572220012,3.14437762,143.17,143.12,6.2903]
[1768572221198,3.14437762,143.17,143.11,6.291]
[1768572221401,3.14437762,143.17,143.11,9.47125978]
[1768572223308,5.33199885,143.17,143.11,9.47125978]
[1768572223508,5.33199885,143.17,143.11,3.18025978]
[1768572226511,5.33199885,143.17,143.11,9.47115978]
[1768572226712,2.18762123,143.17,143.12,3.18025978]